bitfinex/quotes_SOLUSD_20241218
["timestamp","ask_amount","ask_price","bid_price","bid_amount"]
[1734553669871,1e-07,210.13,210.11,46.68513708]
[1734553670205,1e-07,210.13,210.09,46.68513708]
[1734553670495,1e-07,210.13,209.99,70.49513708]
[1734553670496,46.68513708,210.1,209.99,46.68513708]
[1734553670818,7.65909,210.03,209.78,11.9172]
[1734553670974,0.12549,210.02,209.78,11.9172]
[1734553671167,0.12549,209.99,209.61,12.6418502]
[1734553671373,0.12549,209.99,209.68,19.054181]
[1734553671582,20.0,209.96,209.79,2.82530758]
[1734553671900,23.776884,209.99,209.94,46.68513708]
[1734553671901,0.12549,209.99,209.94,46.68513708]
[1734553672200,0.12549,209.99,209.88,46.68513708]
[1734553672201,7.5336,210.03,209.96,46.68513708]
[1734553672377,20.0,209.99,209.92,46.68513708]
[1734553672696,46.68513708,210.12,209.98,46.68513708]
[1734553672875,12.1723,210.16,210.11,46.68513708]
[1734553673292,46.68513708,210.24,210.11,46.68513708]
[1734553673695,20.3933,210.25,210.11,46.68513708]
[1734553674000,20.3933,210.25,210.15,20.0]
[1734553674172,20.3933,210.25,210.23,46.68513708]
[1734553674503,20.3933,210.25,210.21,46.68513708]
[1734553674871,20.3933,210.25,210.2,46.59850707]
[1734553675079,20.3933,210.25,210.18,46.59850707]
[1734553675290,0.12549,210.22,210.14,46.59850707]
[1734553675598,46.59850707,210.16,210.07,46.59850707]
[1734553675797,20.3933,210.25,210.0,2.87561876]
[1734553676105,20.3933,210.25,210.03,0.12549]
[1734553676275,19.030261,210.35,210.05,0.12549]
[1734553676599,21.1322,210.39,210.06,0.71355833]
[1734553676780,46.59850707,210.29,210.21,46.59850707]
[1734553676976,30.0,210.38,210.21,46.59850707]
[1734553676977,46.59850707,210.37,210.27,46.59850707]
[1734553677307,0.12549,210.3,210.24,46.59850707]
[1734553677514,21.1322,210.39,210.18,2.84792741]
[1734553677712,51.1322,210.39,210.18,2.84792741]
[1734553677894,30.0,210.29,210.02,59.518]
[1734553678098,0.12549,210.28,210.02,23.8072]
[1734553678314,0.12549,210.2,209.95,11.9075]
[1734553678477,0.12549,210.16,210.1,46.59850707]
[1734553678678,0.12549,210.16,210.14,46.59850707]
[1734553679311,23.902374,210.16,210.14,46.59850707]
[1734553679498,23.902374,210.16,210.11,46.59850707]
[1734553679805,57.93393328,210.38,210.04,2.87841487]
[1734553679806,12.1834,210.31,210.15,46.59850707]
[1734553680101,12.1834,210.31,210.25,46.59850707]
[1734553680305,46.59850707,210.29,210.2,46.59850707]
[1734553680523,12.1834,210.31,210.11,11.8985]
[1734553680804,0.12549,210.24,210.16,46.59850707]
[1734553680988,0.12549,210.24,210.18,46.59850707]
[1734553681186,12.1834,210.31,210.22,46.59850707]
[1734553681536,0.8864014,210.4,210.3,46.59850707]
[1734553681705,0.8864014,210.4,210.22,46.59850707]
[1734553681706,0.8864014,210.4,210.37,46.59850707]
[1734553682020,0.12549,210.39,210.33,46.59850707]
[1734553682183,0.8864014,210.4,210.31,46.59850707]
[1734553682519,0.8864014,210.4,210.23,2.8354613]
[1734553682520,0.8864014,210.4,210.33,46.59850707]
[1734553682822,46.59850707,210.37,210.27,46.59850707]
[1734553683315,46.59850707,210.33,210.23,46.59850707]
[1734553683528,46.59850707,210.24,210.13,2.79038152]
[1734553683699,46.59850707,210.24,210.04,0.71363022]
[1734553683700,0.12549,210.18,210.14,46.59850707]
[1734553683889,0.12549,210.18,210.17,46.59850707]
[1734553684115,46.59850707,210.36,210.17,46.59850707]
[1734553684294,0.8864014,210.4,210.13,0.12549]
[1734553684494,11.1618014,210.43,210.37,46.59850707]
[1734553684929,11.1618014,210.43,210.41,46.59850707]
[1734553685101,7.7774,210.44,210.41,46.59850707]
[1734553685299,70.06367845,210.65,210.43,46.59850707]
[1734553685300,54.45940707,210.55,210.43,46.59850707]
[1734553685512,46.59850707,210.53,210.43,46.59850707]
[1734553685831,46.59850707,210.47,210.37,46.59850707]
[1734553686003,46.59850707,210.45,210.35,46.59850707]
[1734553686201,46.59850707,210.43,210.35,46.59850707]
[1734553686622,20.0,210.46,210.41,46.59850707]
[1734553686802,54.45940707,210.55,210.45,46.59850707]
[1734553687004,7.8609,210.55,210.47,46.59850707]
[1734553687207,7.8609,210.55,210.53,46.59850707]
[1734553687433,46.59850707,210.63,210.53,46.59850707]
[1734553687805,0.8864014,210.71,210.62,66.59850707]
[1734553688006,0.8864014,210.71,210.66,46.59850707]
[1734553688327,46.59850707,210.67,210.57,46.59850707]
[1734553688651,21.083,210.7,210.47,11.8781]
[1734553688652,21.083,210.7,210.55,20.0]
[1734553689155,0.8864014,210.71,210.59,20.0]
[1734553689511,0.8864014,210.71,210.7,46.59850707]
[1734553689851,1.4e-06,210.71,210.7,46.59850707]
[1734553691122,1.4e-06,210.71,210.65,46.59850707]
[1734553691123,1.4e-06,210.71,210.69,46.59850707]
[1734553691829,1.4e-06,210.71,210.67,46.59850707]
[1734553692020,1.4e-06,210.71,210.55,11.8733]
[1734553692220,46.59850707,210.67,210.57,46.59850707]
[1734553692419,1.4e-06,210.71,210.55,11.8733]
[1734553692626,1.4e-06,210.71,210.64,46.59850707]
[1734553692928,1.4e-06,210.71,210.67,46.59850707]
[1734553693125,1.4e-06,210.71,210.69,46.59850707]
[1734553693567,1.4e-06,210.71,210.67,46.59850707]
[1734553693720,1.4e-06,210.71,210.63,46.59850707]
[1734553693929,1.4e-06,210.71,210.7,46.59850707]
[1734553694969,12.832,210.88,210.71,35.641484]
[1734553695124,12.832,210.88,210.81,46.59850707]
[1734553695439,12.832,210.88,210.82,46.59850707]
[1734553695633,12.832,210.88,210.86,46.59850707]
[1734553695812,13.1001,210.98,210.86,46.59850707]
[1734553696016,13.1001,210.98,210.71,12.57612187]
[1734553696017,13.1001,210.98,210.88,46.59850707]
[1734553696213,46.59850707,210.94,210.84,46.59850707]
[1734553696418,46.59850707,210.85,210.77,46.59850707]
[1734553696719,0.12549,210.84,210.79,46.59850707]
[1734553696915,13.1001,210.98,210.83,46.59850707]
[1734553697453,0.12549,210.85,210.75,46.59850707]
[1734553697653,46.59850707,210.88,210.77,46.59850707]
[1734553697855,0.12549,210.77,210.6,11.8703]
[1734553698067,0.12549,210.77,210.67,46.59850707]
[1734553698242,23.902374,210.77,210.69,46.59850707]
[1734553698444,23.902374,210.73,210.69,46.59850707]
[1734553698621,0.12549,210.73,210.69,46.59850707]
[1734553699178,12.6131,210.81,210.71,46.59850707]
[1734553699477,0.12549,210.8,210.79,46.59850707]
[1734553699678,30.818794,211.0,210.79,46.59850707]
[1734553699679,13.3216,210.92,210.79,46.59850707]
[1734553699885,46.59850707,210.91,210.82,46.59850707]
[1734553700372,46.59850707,210.87,210.78,46.59850707]
[1734553700561,46.59850707,210.89,210.8,46.59850707]
[1734553700769,0.12549,210.84,210.55,23.7473]
[1734553700991,13.3216,210.92,210.65,2.84433505]
[1734553701281,46.59850707,210.9,210.8,46.59850707]
[1734553701470,0.12549,210.84,210.75,46.59850707]
[1734553701675,0.12549,210.84,210.77,46.59850707]
[1734553702187,13.3216,210.92,210.65,2.84433505]
[1734553702188,13.3216,210.92,210.83,46.59850707]
[1734553702495,8.2854,210.93,210.86,46.59850707]
[1734553702700,8.2854,210.93,210.84,46.59850707]
[1734553702883,8.2854,210.93,210.86,46.59850707]
[1734553703207,8.2854,210.93,210.9,46.59850707]
[1734553703560,8.2854,210.93,210.92,46.59850707]
[1734553703761,8.2854,210.93,210.9,46.59850707]
[1734553703998,8.2854,210.93,210.88,46.59850707]
[1734553704214,8.2854,210.93,210.86,46.59850707]
[1734553704376,13.0754,211.01,210.92,46.59850707]
[1734553704702,13.0754,211.01,210.99,46.59850707]
[1734553704910,13.0754,211.01,210.96,46.59850707]
[1734553705257,0.12549,210.99,210.91,46.59850707]
[1734553705466,46.59850707,210.92,210.83,46.59850707]
[1734553705873,46.59850707,210.96,210.88,46.59850707]
[1734553706069,30.0,211.0,210.78,0.7113077]
[1734553706269,0.12549,210.96,210.69,11.8657]
[1734553706495,0.12549,210.96,210.48,237.28474636]
[1734553706496,20.0,210.9,210.62,11.8697]
[1734553706894,0.12549,210.89,210.69,2.82607724]
[1734553707099,0.12549,210.89,210.86,46.59850707]
[1734553707293,46.59850707,210.96,210.86,46.59850707]
[1734553707536,0.12549,210.93,210.86,46.59850707]
[1734553708034,46.59850707,210.99,210.9,46.59850707]
[1734553708233,13.0754,211.01,210.77,0.71132405]
[1734553708234,46.59850707,210.95,210.86,46.59850707]
[1734553708531,46.59850707,210.91,210.82,46.59850707]
[1734553708739,0.12549,210.84,210.76,46.59850707]
[1734553708899,0.12549,210.78,210.7,11.8652]
[1734553709104,0.12549,210.78,210.69,46.59850707]
[1734553709434,0.12549,210.76,210.69,46.59850707]
[1734553709640,20.0,210.75,210.69,46.59850707]
[1734553709800,23.776884,210.78,210.69,46.59850707]
[1734553710004,46.59850707,210.83,210.73,46.59850707]
[1734553710234,0.12549,210.79,210.73,46.59850707]
[1734553710457,0.12549,210.79,210.75,46.59850707]
[1734553710866,46.59850707,210.91,210.77,46.59850707]
[1734553711028,46.59850707,210.91,210.76,82.18390707]
[1734553711029,8.1552,210.95,210.88,46.59850707]
[1734553711375,46.59850707,210.93,210.84,46.59850707]
[1734553711575,8.1552,210.95,210.88,46.59850707]
[1734553712031,12.1485,211.01,210.94,46.59850707]
[1734553712236,0.8864014,211.02,210.98,46.59850707]
[1734553712447,0.8864014,211.02,211.0,46.59850707]
[1734553712852,1.4e-06,211.02,211.0,46.59850707]
[1734553713241,1.4e-06,211.02,211.0,58.44670707]
[1734553713443,1.4e-06,211.02,211.01,24.48758316]
[1734553713762,1.4e-06,211.02,211.0,58.44670707]
[1734553714135,1.4e-06,211.02,211.01,23.776884]
[1734553714458,7.7968,211.17,211.05,20.0]
[1734553714748,54.61670707,211.26,211.15,46.59850707]
[1734553714960,8.0182,211.26,211.15,46.59850707]
[1734553715124,8.0182,211.26,211.21,46.59850707]
[1734553715548,8.0182,211.26,211.1,0.71028207]
[1734553715549,8.0182,211.26,211.19,46.59850707]
[1734553715773,0.473399,211.26,211.24,46.59850707]
[1734553717134,9.9e-05,211.26,211.24,46.59850707]
[1734553717329,9.9e-05,211.26,211.25,11.8343]
[1734553717529,9.9e-05,211.26,211.24,46.59850707]
[1734553717751,9.9e-05,211.26,211.13,2.84032465]
[1734553717752,9.9e-05,211.26,211.22,46.59850707]
[1734553717935,9.9e-05,211.26,211.16,23.776884]
[1734553718130,9.9e-05,211.26,211.23,46.59850707]
[1734553718357,9.9e-05,211.26,211.21,46.59850707]
[1734553718653,0.12549,211.25,211.1,14.72524353]
[1734553718864,0.12549,211.23,211.15,46.59850707]
[1734553719167,0.12549,211.23,211.1,14.72524353]
[1734553719168,0.12549,211.21,211.13,46.59850707]
[1734553719358,23.902374,211.17,211.09,46.59850707]
[1734553719542,23.776884,211.15,211.07,46.59850707]
[1734553719746,20.0,211.15,211.07,46.59850707]
[1734553720038,46.59850707,211.18,211.09,46.59850707]
[1734553720231,2.81178026,211.24,211.13,46.59850707]
[1734553720433,20.0,211.17,211.09,46.59850707]
[1734553720655,23.902374,211.15,211.09,46.59850707]
[1734553720840,23.902374,211.15,210.98,46.59850707]
[1734553720841,0.12549,211.11,211.02,46.59850707]
[1734553721151,0.12549,211.09,211.02,46.59850707]
[1734553721355,0.12549,211.09,211.0,46.59850707]
[1734553721529,46.59850707,211.08,211.0,46.59850707]
[1734553721962,0.12549,211.07,211.0,46.59850707]
[1734553722130,12.2035,211.1,211.04,46.59850707]
[1734553722335,20.0,211.16,211.08,46.59850707]
[1734553722532,20.0,211.16,210.99,0.71079767]
[1734553722758,46.59850707,211.09,210.99,46.59850707]
[1734553723068,21.3807,211.15,210.81,0.12549]
[1734553723271,21.3807,211.15,211.02,154.0]
[1734553723767,21.3807,211.15,210.9,18.945946]
[1734553723934,46.59850707,211.22,211.14,46.59850707]
[1734553724138,46.59850707,211.22,210.98,46.59850707]
[1734553724139,0.12549,211.14,211.05,46.59850707]
[1734553724335,46.59850707,211.12,211.03,46.59850707]
[1734553724650,46.59850707,211.2,210.87,46.59850707]
[1734553724651,0.12549,211.07,210.87,46.59850707]
[1734553724845,0.12549,211.07,210.82,18.953098]
[1734553725055,12.4148,211.06,210.83,11.8578]
[1734553725375,0.12549,211.01,210.83,11.8578]
[1734553725574,20.0,210.98,210.83,11.8578]
[1734553725875,20.0,210.98,210.91,46.59850707]
[1734553726171,20.12549,210.97,210.89,46.59850707]
[1734553726377,12.4148,211.06,210.96,46.59850707]
[1734553726665,0.12549,210.98,210.9,154.0]
[1734553726869,12.4148,211.06,210.83,11.8578]
[1734553727042,12.4148,211.06,210.87,0.12549]
[1734553727244,21.2345,211.19,210.89,0.12549]
[1734553727449,24.1465452,211.19,210.9,0.71062034]
[1734553727880,46.59850707,211.17,211.08,46.59850707]
[1734553728171,46.59850707,211.15,211.06,46.59850707]
[1734553728481,24.1465452,211.19,210.87,46.59850707]
[1734553728482,46.59850707,211.09,211.02,46.59850707]
[1734553728679,46.59850707,211.09,211.01,46.59850707]
[1734553728840,46.59850707,211.13,211.05,46.59850707]
[1734553729047,21.2345,211.19,211.11,46.59850707]
[1734553729349,46.59850707,211.26,211.17,46.59850707]
[1734553729546,46.59850707,211.24,211.15,46.59850707]
[1734553729763,46.59850707,211.24,211.17,154.0]
[1734553729971,46.59850707,211.24,211.15,46.59850707]
[1734553730141,46.59850707,211.26,211.17,46.59850707]
[1734553730348,46.59850707,211.24,211.15,46.59850707]
[1734553730676,46.59850707,211.26,211.17,46.59850707]
[1734553730852,20.4549,211.32,211.09,46.59850707]
[1734553730853,46.59850707,211.28,211.19,46.59850707]
[1734553731069,46.59850707,211.3,211.21,46.59850707]
[1734553731270,67.05340707,211.32,211.23,46.59850707]
[1734553731582,46.59850707,211.26,211.17,46.59850707]
[1734553731779,20.4549,211.32,211.21,46.59850707]
[1734553731780,46.59850707,211.3,211.21,46.59850707]
[1734553732246,67.05340707,211.32,211.23,46.59850707]
[1734553732446,46.59850707,211.31,211.22,46.59850707]
[1734553732646,46.59850707,211.25,211.16,46.59850707]
[1734553732869,46.59850707,211.27,211.18,46.59850707]
[1734553733072,46.59850707,211.29,211.2,46.59850707]
[1734553733258,46.59850707,211.27,211.18,46.59850707]
[1734553733442,46.59850707,211.23,211.14,46.59850707]
[1734553733646,0.12549,211.15,210.85,1.5183]
[1734553733870,20.0,211.11,211.04,46.59850707]
[1734553734043,20.0,211.11,211.02,46.59850707]
[1734553734244,0.12549,211.04,210.96,46.59850707]
[1734553734469,20.0,211.11,210.96,46.59850707]
[1734553734654,66.59850707,211.07,210.98,46.59850707]
[1734553734849,66.59850707,211.07,211.0,46.59850707]
[1734553734850,20.0,211.07,211.0,46.59850707]
[1734553735075,20.0,211.06,210.97,46.59850707]
[1734553735248,20.0,211.02,210.95,46.59850707]
[1734553735455,46.59850707,211.03,210.93,46.59850707]
[1734553735651,46.59850707,211.03,210.95,46.59850707]
[1734553735854,20.0,211.0,210.93,46.59850707]
[1734553736175,20.0,210.98,210.91,46.59850707]
[1734553736376,46.59850707,210.96,210.87,46.59850707]
[1734553736581,66.59850707,210.98,210.89,46.59850707]
[1734553736978,66.59850707,210.98,210.73,18.953098]
[1734553736979,20.0,210.92,210.83,46.59850707]
[1734553737182,46.59850707,210.97,210.87,46.59850707]
[1734553737360,46.59850707,210.95,210.87,46.59850707]
[1734553737764,46.59850707,211.03,210.93,46.59850707]
[1734553737979,21.0092,211.14,211.01,46.59850707]
[1734553738188,46.59850707,211.19,211.12,46.59850707]
[1734553738358,12.2508,211.23,210.94,23.776884]
[1734553738753,12.2508,211.23,210.97,20.0]
[1734553738997,12.2508,211.23,211.01,20.0]
[1734553739170,12.2508,211.23,210.97,20.71067512]
[1734553739171,12.2508,211.23,211.06,23.776884]
[1734553739500,46.59850707,211.2,211.12,46.59850707]
[1734553739995,46.59850707,211.16,211.08,46.59850707]
[1734553740205,46.59850707,211.18,211.1,46.59850707]
[1734553740757,12.2508,211.23,211.14,46.59850707]
[1734553740965,46.59850707,211.22,211.14,46.59850707]
[1734553741510,46.59850707,211.22,211.12,46.59850707]
[1734553741670,46.59850707,211.22,211.14,46.59850707]
[1734553741866,12.2508,211.23,211.14,46.59850707]
[1734553742072,46.59850707,211.2,211.12,46.59850707]
[1734553742270,46.59850707,211.22,211.14,46.59850707]
[1734553742494,0.2864,211.27,211.12,20.0]
[1734553742694,0.2864,211.27,211.26,46.59850707]
[1734553742997,7.8429,211.34,211.26,46.59850707]
[1734553743162,47.26321005,211.33,211.24,46.59850707]
[1734553743572,46.59850707,211.29,211.2,46.59850707]
[1734553743789,46.59850707,211.27,211.18,46.59850707]
[1734553744481,46.59850707,211.25,211.16,46.59850707]
[1734553744676,46.59850707,211.27,211.16,46.59850707]
[1734553744867,47.26321005,211.33,211.24,46.59850707]
[1734553745067,47.26321005,211.33,211.17,0.71019471]
[1734553745068,0.66470298,211.33,211.28,46.59850707]
[1734553745269,46.59850707,211.3,211.2,46.59850707]
[1734553745487,46.59850707,211.28,211.2,46.59850707]
[1734553745698,0.66470298,211.33,211.19,11.8372]
[1734553745899,46.59850707,211.28,211.2,46.59850707]
[1734553746219,0.12549,211.25,211.16,46.59850707]
[1734553746378,46.59850707,211.18,211.08,46.59850707]
[1734553746576,46.59850707,211.2,211.12,46.59850707]
[1734553746880,43.2641,211.41,211.13,0.71039185]
[1734553747079,46.59850707,211.26,211.17,46.59850707]
[1734553747472,46.59850707,211.28,211.19,46.59850707]
[1734553747670,46.59850707,211.26,211.17,46.59850707]
[1734553747873,0.12549,211.19,211.09,46.59850707]
[1734553748089,30.0,211.39,211.15,46.59850707]
[1734553748294,13.2641,211.41,211.1,0.71020024]
[1734553748496,46.59850707,211.2,211.04,35.5381]
[1734553748679,46.59850707,211.22,211.13,46.59850707]
[1734553748876,46.59850707,211.18,211.09,46.59850707]
[1734553749198,0.12549,211.13,211.05,46.59850707]
[1734553749379,0.12549,211.15,211.03,46.59850707]
[1734553749380,46.59850707,211.12,211.03,46.59850707]
[1734553749583,7.8906,211.15,211.07,46.59850707]
[1734553749766,12.0512,211.21,211.05,0.71055886]
[1734553749965,7.711,211.25,211.05,0.71055886]
[1734553750565,7.711,211.25,211.07,20.0]
[1734553750794,7.711,211.25,211.16,46.59850707]
[1734553750982,46.59850707,211.22,211.14,46.59850707]
[1734553751184,0.12549,211.15,211.03,46.59850707]
[1734553751386,7.711,211.25,211.1,46.59850707]
[1734553751608,7.711,211.25,211.06,0.12549]
[1734553751907,12.6079,211.3,211.08,0.12549]
[1734553752070,0.12549,211.29,211.05,35.5365]
[1734553752270,0.12549,211.29,211.05,11.8455]
[1734553752579,0.12549,211.29,211.08,20.0]
[1734553752776,46.59850707,211.22,211.14,46.59850707]
[1734553753173,46.59850707,211.21,211.11,46.59850707]
[1734553753593,46.59850707,211.25,211.15,46.59850707]
[1734553753797,46.59850707,211.21,211.11,46.59850707]
[1734553754292,46.59850707,211.25,211.15,46.59850707]
[1734553754491,46.59850707,211.23,211.13,46.59850707]
[1734553754668,46.59850707,211.19,211.09,46.59850707]
[1734553754873,46.59850707,211.21,211.07,11.844]
[1734553755079,46.59850707,211.17,211.08,46.59850707]
[1734553755394,46.59850707,211.23,211.14,46.59850707]
[1734553755579,46.59850707,211.25,211.14,46.59850707]
[1734553755777,46.59850707,211.23,211.14,46.59850707]
[1734553755978,46.59850707,211.21,211.12,46.59850707]
[1734553756194,46.59850707,211.21,211.1,58.44120707]
[1734553756491,23.776884,211.29,211.1,58.44120707]
[1734553756492,46.59850707,211.19,211.1,58.44120707]
[1734553756992,46.59850707,211.23,211.12,46.59850707]
[1734553757294,0.12549,211.18,211.08,46.59850707]
[1734553757508,26.9779,211.3,209.73,6.00785079]
[1734553757509,46.59850707,211.09,211.0,46.59850707]
[1734553757796,46.59850707,211.03,210.94,46.59850707]
[1734553757975,0.12549,211.09,210.89,14.69650133]
[1734553757976,46.59850707,211.05,210.96,46.59850707]
[1734553758177,0.12549,211.09,210.89,11.8545]
[1734553758380,46.59850707,211.03,210.94,46.59850707]
[1734553758579,46.59850707,210.95,210.85,11.8565]
[1734553758778,46.59850707,210.93,210.82,46.59850707]
[1734553758999,46.59850707,210.89,210.8,58.45770707]
[1734553759234,46.59850707,210.87,210.78,46.59850707]
[1734553759410,46.59850707,210.91,210.8,46.59850707]
[1734553759700,46.72399707,210.89,210.78,46.59850707]
[1734553759884,13.2157,210.92,210.86,46.59850707]
[1734553760202,13.2157,210.92,210.84,46.59850707]
[1734553760618,13.2157,210.92,210.76,58.46020707]
[1734553760619,8.0158,210.98,210.76,59.3089]
[1734553760778,8.0158,210.98,210.9,46.59850707]
[1734553761098,0.12549,210.97,210.88,46.59850707]
[1734553761315,46.59850707,210.93,210.84,46.59850707]
[1734553761495,46.59850707,210.95,210.86,46.59850707]
[1734553762186,46.59850707,210.93,210.84,46.59850707]
[1734553762382,46.59850707,210.91,210.82,46.59850707]
[1734553762687,46.59850707,210.95,210.86,46.59850707]
[1734553763021,46.59850707,210.93,210.84,46.59850707]
[1734553763313,8.0158,210.98,210.88,46.59850707]
[1734553763493,46.59850707,211.07,210.96,46.59850707]
[1734553763685,7.5059,211.08,210.89,0.71112551]
[1734553763686,7.5059,211.08,211.02,46.59850707]
[1734553764018,7.5059,211.08,210.9,59.338684]
[1734553764019,7.5059,211.08,210.9,35.5618]
[1734553764218,46.59850707,211.03,210.93,46.59850707]
[1734553764507,0.12549,211.05,210.79,23.7202]
[1734553764808,41.8444,211.07,210.71,12.57604639]
[1734553764992,41.8444,211.07,210.73,154.0]
[1734553765194,20.0,211.03,210.74,0.71131435]
[1734553765514,20.0,210.88,210.79,46.59850707]
[1734553765705,46.59850707,210.82,210.73,46.59850707]
[1734553765882,46.59850707,210.84,210.73,46.59850707]
[1734553766196,46.59850707,210.82,210.73,46.59850707]
[1734553766400,46.59850707,210.84,210.73,46.59850707]
[1734553766609,46.59850707,210.8,210.71,46.59850707]
[1734553766824,46.59850707,210.74,210.65,46.59850707]
[1734553767024,46.59850707,210.74,210.63,46.59850707]
[1734553767186,46.59850707,210.74,210.62,2.80092582]
[1734553767187,46.59850707,210.78,210.69,46.59850707]
[1734553767614,0.12549,210.79,210.71,46.59850707]
[1734553767802,46.59850707,210.8,210.71,46.59850707]
[1734553768011,46.59850707,210.82,210.73,46.59850707]
[1734553768223,46.59850707,210.84,210.75,46.59850707]
[1734553768511,46.59850707,210.82,210.73,46.59850707]
[1734553768714,46.59850707,210.84,210.75,46.59850707]
[1734553768917,0.12549,210.83,210.73,46.59850707]
[1734553769243,0.12549,210.79,210.71,46.59850707]
[1734553769409,20.0,210.77,210.69,46.59850707]
[1734553769594,46.59850707,210.76,210.65,46.59850707]
[1734553769791,0.12549,210.75,210.65,46.59850707]
[1734553770231,0.12549,210.73,210.65,46.59850707]
[1734553770391,0.12549,210.71,210.63,46.59850707]
[1734553770926,46.59850707,210.7,210.61,46.59850707]
[1734553771131,46.59850707,210.68,210.59,46.59850707]
[1734553771637,20.893,210.71,210.63,46.59850707]
[1734553771826,20.893,210.71,210.67,46.59850707]
[1734553772205,0.12549,210.7,210.61,46.59850707]
[1734553772402,30.839856,210.81,210.57,15.46891273]
[1734553772403,46.59850707,210.78,210.57,15.46891273]
[1734553772712,46.59850707,210.78,210.7,46.59850707]
[1734553772934,46.59850707,210.74,210.64,46.59850707]
[1734553773111,0.12549,210.69,210.6,46.59850707]
[1734553773443,0.12549,210.64,210.56,46.59850707]
[1734553773745,46.59850707,210.65,210.56,46.59850707]
[1734553774298,46.59850707,210.65,210.43,71.87710707]
[1734553774299,0.12549,210.58,210.48,46.59850707]
[1734553774416,46.59850707,210.57,210.48,46.59850707]
[1734553774603,46.59850707,210.57,210.35,1.5183]
[1734553774604,46.59850707,210.55,210.46,46.59850707]
[1734553774808,46.59850707,210.51,210.42,46.59850707]
[1734553775216,46.59850707,210.59,210.5,46.59850707]
[1734553775559,13.2346,210.69,210.51,0.71245096]
[1734553775713,46.59850707,210.65,210.56,46.59850707]
[1734553776450,59.83310707,210.69,210.6,46.59850707]
[1734553776667,13.2346,210.69,210.64,46.59850707]
[1734553776953,8.2609,210.72,210.66,46.59850707]
[1734553777157,8.2609,210.72,210.66,46.81136127]
[1734553777342,18.984004,210.78,210.68,46.59850707]
[1734553777549,46.59850707,210.77,210.66,46.81136127]
[1734553777747,46.59850707,210.73,210.66,0.2128542]
[1734553777924,46.59850707,210.68,210.66,0.2128542]
[1734553778865,0.12549,210.67,210.66,0.2128542]
[1734553779273,46.59850707,210.63,210.54,46.59850707]
[1734553779478,66.59850707,210.72,210.62,46.59850707]
[1734553779764,46.59850707,210.7,210.61,46.59850707]
[1734553779930,46.59850707,210.68,210.59,46.59850707]
[1734553780428,46.59850707,210.6,210.48,11.8774]
[1734553780730,11.8623,210.75,210.51,46.59850707]
[1734553780731,46.59850707,210.62,210.51,46.59850707]
[1734553780933,46.59850707,210.64,210.55,46.59850707]
[1734553781141,46.59850707,210.68,210.59,46.59850707]
[1734553781456,46.59850707,210.64,210.55,46.59850707]
[1734553781651,0.12549,210.61,210.51,46.59850707]
[1734553782063,0.12549,210.61,210.5,0.6091641]
[1734553782064,0.12549,210.55,210.5,0.6091641]
[1734553782432,12.1458,210.6,210.5,0.6091641]
[1734553782433,46.59850707,210.58,210.5,0.6091641]
[1734553782943,12.1458,210.6,210.53,46.59850707]
[1734553783144,46.59850707,210.66,210.57,46.59850707]
[1734553783349,46.59850707,210.61,210.52,46.59850707]
[1734553783545,0.12549,210.6,210.52,46.59850707]
[1734553783748,46.59850707,210.63,210.54,46.59850707]
[1734553784253,12.1458,210.68,210.58,46.59850707]
[1734553784555,12.1458,210.68,210.62,46.59850707]
[1734553784875,7.6334,210.7,210.64,46.59850707]
[1734553785234,46.59850707,210.67,210.57,46.59850707]
[1734553785467,0.12549,210.6,210.51,46.59850707]
[1734553785677,46.59850707,210.64,210.55,46.59850707]
[1734553785864,7.6334,210.7,210.57,46.59850707]
[1734553786061,7.6334,210.7,210.44,23.7594]
[1734553786266,0.12549,210.63,210.33,0.2218]
[1734553786470,0.12549,210.58,210.32,46.59850707]
[1734553786665,0.12549,210.53,210.3,11.8875]
[1734553787191,0.12549,210.49,210.3,11.8875]
[1734553787362,46.59850707,210.45,210.35,46.59850707]
[1734553787745,0.12549,210.42,210.33,46.59850707]
[1734553788291,0.12549,210.38,210.29,46.59850707]
[1734553788452,46.59850707,210.39,210.31,46.59850707]
[1734553788651,46.59850707,210.41,210.31,46.59850707]
[1734553788856,46.59850707,210.41,210.32,46.59850707]
[1734553789051,12.5189,210.5,210.34,46.59850707]
[1734553789052,46.59850707,210.43,210.34,46.59850707]
[1734553789314,46.59850707,210.45,210.36,46.59850707]
[1734553789499,0.12549,210.46,210.36,46.59850707]
[1734553789794,12.5189,210.5,210.42,46.59850707]
[1734553790086,46.59850707,210.55,210.46,46.59850707]
[1734553790454,46.59850707,210.53,210.44,46.59850707]
[1734553790654,12.3023,210.59,210.4,46.59850707]
[1734553790655,46.59850707,210.51,210.4,46.59850707]